[Event "Marcel Invitational Chess-ch 2022"]
[Site "Dhaka"]
[Date "2022.04.24"]
[Round "6.1"]
[White "Manon, Reja Neer"]
[Black "Mohammad Minhaz Uddin"]
[Result "0-1"]
[ECO "C42"]
[WhiteElo "2209"]
[BlackElo "2267"]
[Annotator "TA"]
[PlyCount "125"]
[EventDate "2022.04.18"]
[EventCountry "BAN"]
[SourceTitle "playchess.com"]
[Source "ChessBase"]
[SourceQuality "1"]
[TimeControl "5400+30"]

{[%evp 25,125,13,21,19,11,11,18,0,21,7,10,10,29,23,22,0,9,6,17,0,56,49,25,21,60,25,274,275,257,275,268,260,272,62,97,83,107,87,70,44,78,0,0,0,29,0,62,-104,-116,-114,-101,-92,-94,-233,-224,-233,-218,-243,-229,-240,-209,-271,-263,-426,-408,-413,-425,-420,-384,-448,-441,-441,-441,-409,-404,-376,-340,-517,-517,-654,-630,-29961,-29962,-29961,-29962,-29961,-29962,-29963,-29964,-29961,-29963,-29970,-29972,-29976,-29977,-29977,-29960,-29988,-29989,-29990,-29991,-29991]} 1. e4 {[%emt 0:08:19]} e5 {[%emt 0:00:04]} 2. Nf3 {[%emt 0:00:03]} Nf6 {[%emt 0:00:11]} 3. Nxe5 {[%emt 0:00:04]} d6 {[%emt 0:00:01]} 4. Nf3 {[%emt 0:00:09]} Nxe4 {[%emt 0:00:02]} 5. d4 {[%emt 0:00:09]} d5 {[%emt 0:00:02]} 6. Bd3 {[%emt 0:00:06]} Nc6 {[%emt 0:00:03]} 7. O-O {[%emt 0:00:31]} Be7 {[%emt 0:00:02]} 8. c4 {[%emt 0:01:04]} Nb4 {[%emt 0:00:07]} 9. Be2 {[%emt 0:00:03]} O-O {[%emt 0:00:19]} 10. Nc3 {[%emt 0:00:13]} Bf5 {[%emt 0:00:03]} 11. a3 {[%emt 0:00:37]} Nxc3 {[%emt 0:00:03]} 12. bxc3 {[%emt 0:00:06]} Nc6 {[%emt 0:00:02]} 13. Re1 {[%emt 0:01:22]} Re8 {[%emt 0:00:03]} 14. cxd5 {[%emt 0:00:58] 14.cxd5 was played by the boomers. C42: Petroff Defence: 3 Nxe5 and unusual White 3rd moves.} Qxd5 {[%emt 0:00:02]} 15. Bf4 {[%emt 0:00:02]} Rac8 {[%emt 0:01:39]} 16. Bd3 {[%emt 0:00:39] Threatens to win with c4. The position is equal.} Bxd3 {[%emt 0:15:56]} 17. Qxd3 {[%emt 0:00:02]} h6 {[%emt 0:01:08]} 18. h3 {[%emt 0:42:01]} Bd6 {[%emt 0:21:33] [#]} 19. c4 $1 {[%emt 0:02:16][%cal Bc3c4,Bc4c5,Bc5c6][%mdl 32]} Qa5 {[%emt 0:01:04] [#]} 20. Be3 $146 {[%emt 0:04:54]} ({Predecessor:} 20. Bd2 Qa4 21. c5 Bf8 22. Rxe8 Rxe8 23. Rc1 Rd8 {½-½ (23) Domancich,E (2411)-Bendana Guerrero,G (2448) ICCF email 2008}) 20... Rcd8 {[%emt 0:01:12]} 21. Qb3 {[%emt 0:06:05]} Qa6 {[%emt 0:11:38]} 22. Rec1 {[%emt 0:05:47]} Rd7 {[%emt 0:07:07]} (22... b6 $11) 23. c5 $14 {[%emt 0:03:49]} Bf8 {[%emt 0:00:21]} 24. Rab1 $36 {[%emt 0:01:11][%mdl 2048] Black is under pressure.} Nd8 {[%emt 0:04:06]} 25. d5 {[%emt 0:02:27]} (25. Ne5 {feels hotter.} Rde7 26. f4 c6 27. f5) 25... b6 $2 {[%emt 0:08:01]} (25... c6 $1 $11) 26. c6 $18 {[%emt 0:01:21]} Rde7 {[%emt 0:00:50]} 27. Bf4 {[%emt 0:03:08]} Qc8 {[%emt 0:00:51]} 28. Re1 {[%emt 0:02:04]} Re4 {[%emt 0:00:36][%cal Od8c6]} 29. Qd3 $2 {[%emt 0:01:22]} (29. Bg3 $18) 29... f5 $1 $14 {[%emt 0:00:12] [#]} 30. Bd2 $1 {[%emt 0:08:00]} a5 {[%emt 0:05:03]} 31. Nd4 {[%emt 0:03:02] Black must now prevent Rxe4.} Bc5 {[%emt 0:00:13]} 32. Nb3 {[%emt 0:01:08]} Bd6 {[%emt 0:03:30]} (32... Rxe1+ 33. Rxe1 Rxe1+ 34. Bxe1 Bxa3 35. Nd4 $16) 33. Rxe4 {[%emt 0:01:53]} (33. Rbd1 $16) 33... fxe4 $11 {[%emt 0:01:00]} 34. Qc4 {[%emt 0:00:51] Nd4 is the strong threat.} Nf7 {[%emt 0:04:23][%cal Bd8f7,Bf7d6,Bd6e4,Be4c3][%mdl 32]} (34... Qf5 $5 {[%cal Re4e3]} 35. Re1 Qf7 $11) 35. Re1 {[%emt 0:01:06]} (35. Nd4 $5 {[%cal Rd4e6]}) 35... Bxa3 {[%emt 0:07:53]} (35... Be5 $11) 36. Rxe4 $2 {[%emt 0:00:32] [#]} (36. Nd4 $1 $14 {stays ahead.}) 36... Nd6 $1 $17 {[%emt 0:00:04][%csl LRc4,LRe4]} 37. Rxe8+ {[%emt 0:00:06]} Qxe8 {[%emt 0:00:01]} 38. Qg4 {[%emt 0:00:48]} Qe4 {[%emt 0:00:54] Strongly threatening ...a4.} 39. Qxe4 {[%emt 0:01:10]} (39. Nd4 $17) 39... Nxe4 {[%emt 0:00:01][%mdl 4096] Endgame KBN-KBN} 40. Bf4 {[%emt 0:00:26]} Bd6 {[%emt 0:01:56]} 41. Bc1 {[%emt 0:00:29]} Nc3 {[%emt 0:00:35] Hoping for ...a4.} 42. Nd4 {[%emt 0:00:11]} Bc5 {[%emt 0:01:53]} ({Not} 42... Nxd5 $2 43. Kf1) 43. Ne6 {[%emt 0:00:45]} Nxd5 {[%emt 0:02:06]} 44. Bb2 $2 {[%emt 0:00:37]} (44. Nxc5 bxc5 45. Kf1) 44... Bd6 $19 {[%emt 0:00:58]} 45. Nxg7 {[%emt 0:00:15]} a4 {[%emt 0:00:02]} 46. Nf5 {[%emt 0:00:13]} a3 {[%emt 0:00:23]} 47. Bxa3 {[%emt 0:00:52]} Bxa3 {[%emt 0:00:03]} 48. Nxh6+ {[%emt 0:00:05]} Kg7 {[%emt 0:01:55]} 49. Nf5+ {[%emt 0:00:15]} Kf6 {[%emt 0:00:01]} 50. Nd4 {[%emt 0:00:24]} Nc3 {[%emt 0:00:51] Against Nb5} 51. h4 {[%emt 0:00:21]} (51. Kf1 {was necessary.}) 51... Bc5 {[%emt 0:01:29]} 52. Nb3 {[%emt 0:00:35]} Ne4 {[%emt 0:00:17]} 53. Nxc5 {[%emt 0:00:48]} Nxc5 {[%emt 0:00:58] KN-KP. Black mates.} 54. Kf1 {[%emt 0:00:32]} Ne6 {[%emt 0:01:10]} 55. Ke2 {[%emt 0:00:12]} Nd4+ {[%emt 0:00:11]} 56. Kd3 {[%emt 0:00:01]} Nxc6 {[%emt 0:00:01] KN-K3P} 57. Ke4 {[%emt 0:00:12]} Ne5 {[%emt 0:00:37]} 58. f3 {[%emt 0:00:19]} b5 {[%emt 0:00:26][%cal Bb6b5,Bb5b4,Bb4b3][%mdl 32]} 59. g4 {[%emt 0:00:06]} b4 {[%emt 0:00:23]} 60. g5+ {[%emt 0:00:08]} Ke6 {[%emt 0:00:01]} 61. f4 {[%emt 0:00:14] [#]} b3 $1 {[%emt 0:00:22]} 62. f5+ {[%emt 0:00:06]} (62. Ke3 b2) 62... Kd6 {[%emt 0:00:17]} 63. Kd4 {[%emt 0:04:26] What a bad dream for White.  Weighted Error Value: White=0.43/Black=0.16 (very precise)} 0-1

[Event "Marcel Invitational Chess-ch 2022"]
[Site "Dhaka"]
[Date "2022.04.24"]
[Round "6.3"]
[White "Ahmed, Shafiq"]
[Black "Ahmed, Sheikh Nasir"]
[Result "1/2-1/2"]
[ECO "B85"]
[WhiteElo "2090"]
[BlackElo "2168"]
[Annotator "TA"]
[PlyCount "141"]
[EventDate "2022.04.18"]
[EventCountry "BAN"]
[SourceTitle "playchess.com"]
[Source "ChessBase"]
[SourceQuality "1"]
[TimeControl "5400+30"]

{[%evp 23,141,16,25,-6,0,-10,-2,-12,25,0,0,0,75,18,37,36,37,37,31,-19,0,-7,0,-70,-71,-125,-40,-70,-67,-67,-77,-80,-93,-110,-96,-106,-89,-86,-74,-109,-45,-117,-82,-83,0,-191,-77,-439,-23,-48,-40,-147,-141,-181,-84,-75,-16,-16,-22,-17,-14,-21,-8,-8,-8,-39,-40,-42,-73,-87,-87,-87,-87,-87,-87,-87,-87,-87,-87,-87,-87,-1173,-402,-405,-8,-8,-8,-8,-7,-7,-7,-7,-7,-8,-8,-8,-8,-8,-8,-8,0,-8,0,-8,-8,-8,-8,-8,0,0,0,-8,0,0,0,0,0,0,0,0]} 1. e4 {[%emt 0:01:55]} c5 {[%emt 0:00:03]} 2. Nf3 {[%emt 0:00:08]} e6 {[%emt 0:00:07]} 3. d4 {[%emt 0:00:06]} cxd4 {[%emt 0:00:04]} 4. Nxd4 {[%emt 0:00:07]} Nc6 {[%emt 0:00:04]} 5. Nc3 {[%emt 0:00:31]} Qc7 {[%emt 0:00:40]} 6. Be3 {[%emt 0:00:29]} Nf6 {[%emt 0:00:23]} 7. Be2 {[%emt 0:00:03]} Be7 {[%emt 0:00:20]} 8. O-O {[%emt 0:00:26]} O-O {[%emt 0:00:04]} 9. f4 {[%emt 0:00:06]} d6 {[%emt 0:00:05]} 10. Qe1 {[%emt 0:01:05]} a6 {[%emt 0:07:04]} 11. Qg3 {[%emt 0:00:27]} Nxd4 {[%emt 0:00:13]} 12. Bxd4 {[%emt 0:00:25]} b5 {[%emt 0:00:02]} 13. Bd3 {[%emt 0:05:23] B85: Sicilian Scheveningen: 6 Be2 a6, lines with early Be3.} b4 {[%emt 0:05:54]} 14. Nd1 {[%emt 0:00:09]} Bb7 {[%emt 0:01:07]} 15. Nf2 {[%emt 0:00:10]} g6 {[%emt 0:13:10] [#]} 16. f5 $146 {[%emt 0:12:23]} (16. e5 $5 {[%cal Re5f6]} Nh5 17. Qe3 $11) ({Predecessor:} 16. Ng4 Nxg4 17. Qxg4 e5 18. Be3 exf4 19. Qxf4 Qa5 20. Bc4 d5 21. Bxd5 Bxd5 22. exd5 Qxd5 {½-½ (28) Peltola,L-Leino,J (2170) Salokangas 1996}) 16... e5 {[%emt 0:07:17]} 17. Be3 {[%emt 0:00:57]} Rfe8 {[%emt 0:00:23]} (17... Kh8 $11 {remains equal.} 18. Qf3 d5) 18. Bg5 {[%emt 0:07:05]} (18. Ng4 $16 {Black must now prevent fxg6.} Nxg4 19. Qxg4) 18... Nh5 $11 {[%emt 0:09:26]} 19. Qh4 {[%emt 0:00:27]} Qd8 {[%emt 0:00:46]} 20. Bxe7 {[%emt 0:05:59]} Qxe7 {[%emt 0:00:04]} 21. Qg4 {[%emt 0:01:30]} (21. Qxe7 $14 Rxe7 22. Ng4) 21... d5 {[%emt 0:05:12]} 22. exd5 {[%emt 0:00:33]} Bxd5 {[%emt 0:00:15]} 23. fxg6 {[%emt 0:05:26]} ({Better is} 23. Rae1 $11) 23... hxg6 $15 {[%emt 0:01:05]} 24. Ne4 {[%emt 0:01:37]} (24. Rae1 $142) 24... Bxe4 {[%emt 0:00:50]} (24... Nf4 $17 25. Qg5 Kg7) 25. Bxe4 {[%emt 0:06:41]} Rad8 {[%emt 0:00:30]} 26. Qf3 {[%emt 0:00:56] Against Nf6} Kg7 {[%emt 0:02:53]} 27. Rf2 {[%emt 0:00:53]} Rd6 {[%emt 0:04:42]} 28. Raf1 {[%emt 0:03:49][%cal Rf3f7]} Rf6 {[%emt 0:00:18]} ({Weaker is} 28... Nf4 29. Bd3 $15) 29. Qe3 {[%emt 0:00:50]} Rxf2 {[%emt 0:00:19]} 30. Rxf2 {[%emt 0:03:48]} Rd8 {[%emt 0:00:46]} 31. Bd3 {[%emt 0:01:00]} Qd6 {[%emt 0:03:54]} (31... Nf6 $17 {Hoping for ...Ng4.} 32. h3 Nd5) 32. Qa7 {[%emt 0:03:56]} (32. Re2 $15) 32... Nf4 {[%emt 0:10:41]} 33. Bf1 {[%emt 0:00:18]} Qd1 {[%emt 0:05:05]} (33... Rd7 $1 $17 {[%cal Rd7a7]} 34. Qxa6 Qd4) 34. Qxa6 {[%emt 0:13:37]} (34. Qe7 $11 Qd6 35. Qxd6 Rxd6 36. g3) 34... Qd4 {[%emt 0:06:02]} (34... Qe1 $1 $19 {[%cal Re1e3] and Black stays clearly on top.} 35. Qb6 Rd4) 35. g3 $2 {[%emt 0:01:05][%mdl 8192] [#]} (35. Qb7 $17 {is more resistant.}) 35... Ne6 $2 {[%emt 0:01:48]} ({Black should play} 35... Rd6 $1 $19 {[%cal Rd6a6]} 36. Qb5 Rb6) 36. Qb7 {[%emt 0:03:21]} Rd7 {[%emt 0:00:19]} 37. Qb5 {[%emt 0:00:46]} (37. Qf3 $1 $15) 37... Rc7 $1 $17 {[%emt 0:02:09]} 38. Qd3 {[%emt 0:07:30]} Qxb2 {[%emt 0:00:29]} (38... e4 $1 $19 {[%cal Re4d3] has better winning chances.} 39. Qxd4+ Nxd4) 39. c4 {[%emt 0:00:12]} Qc3 {[%emt 0:04:51]} (39... Qc1 $17) 40. Qxc3 $1 $11 {[%emt 0:00:48]} bxc3 {[%emt 0:00:01][%mdl 4096] Endgame KRB-KRN} 41. Rc2 {[%emt 0:01:01]} Ra7 {[%emt 0:00:01] Strongly threatening ...Ra3.} 42. Rxc3 {[%emt 0:00:17]} Rxa2 {[%emt 0:00:01]} 43. c5 {[%emt 0:00:39]} Ra7 {[%emt 0:00:03]} 44. h4 {[%emt 0:01:01]} Rc7 {[%emt 0:00:13]} 45. c6 {[%emt 0:02:25]} Nd4 {[%emt 0:00:02]} 46. Kf2 {[%emt 0:00:25]} Rxc6 {[%emt 0:00:14]} 47. Rxc6 {[%emt 0:01:06]} Nxc6 $17 {[%emt 0:00:02] KB-KN} 48. Ke3 {[%emt 0:00:24]} f5 $1 {[%emt 0:00:14]} 49. Bb5 {[%emt 0:01:59]} Nd4 {[%emt 0:00:57]} 50. Be8 {[%emt 0:00:26]} Kf6 {[%emt 0:00:38]} 51. Kd3 {[%emt 0:01:04]} Ne6 {[%emt 0:00:13]} 52. h5 $2 {[%emt 0:00:56][%mdl 8192]} (52. Ke3 $17) 52... g5 {[%emt 0:03:32]} (52... gxh5 $142 53. Bb5 Nc5+ 54. Ke2 Kg5) 53. h6 $19 {[%emt 0:00:05] [#]} Nf8 $2 {[%emt 0:02:31]} (53... Nc5+ $1 $19 54. Ke3 Ne4) 54. g4 $1 $11 {[%emt 0:01:43] The position is equal.} fxg4 {[%emt 0:02:21] ...g3 is the strong threat.} 55. Ke4 {[%emt 0:00:10]} Ke6 {[%emt 0:01:11]} (55... Ne6 $5 56. h7 Kg7 57. Kxe5 {[#]} g3 $1 $11) 56. Bh5 {[%emt 0:00:48]} g3 {[%emt 0:00:02]} 57. Kf3 {[%emt 0:00:11]} Kf5 {[%emt 0:00:47]} 58. Kxg3 {[%emt 0:00:51]} Nh7 {[%emt 0:00:01]} 59. Bf7 {[%emt 0:00:25]} Nf6 {[%emt 0:00:18]} 60. Kh3 {[%emt 0:01:45]} e4 {[%emt 0:03:09]} 61. Kg3 {[%emt 0:00:20]} g4 {[%emt 0:00:35]} 62. Bg8 {[%emt 0:01:36]} Kg6 {[%emt 0:01:28]} (62... Nxg8 $2 63. h7 Ne7 64. h8=Q $18) 63. Be6 {[%emt 0:00:02]} e3 {[%emt 0:00:16]} 64. Bc4 {[%emt 0:00:11]} Kg5 {[%emt 0:03:40] ( -> ...Nh5+)} 65. Be2 $1 {[%emt 0:00:22]} Nh5+ {[%emt 0:00:04]} 66. Kh2 {[%emt 0:01:10] Intending h7 and mate.} g3+ {[%emt 0:00:46]} 67. Kh3 {[%emt 0:00:34]} Kxh6 {[%emt 0:00:24]} 68. Bxh5 {[%emt 0:00:06][%mdl 64] Remove Defender} Kxh5 {[%emt 0:00:07]} 69. Kxg3 {[%emt 0:00:14][%cal Bh3g3,Bg3f3,Bf3e3][%mdl 32]} Kh6 {[%emt 0:00:04]} (69... e2 $5 70. Kf2 Kh6 $11) 70. Kf3 {[%emt 0:06:17]} Kg7 {[%emt 0:02:11]} 71. Kxe3 {[%emt 0:00:30] Weighted Error Value: White=0.44/Black=0.46} 1/2-1/2

[Event "Marcel Invitational Chess-ch 2022"]
[Site "Dhaka"]
[Date "2022.04.24"]
[Round "6.4"]
[White "Nasim Hossain, Bhuiyan"]
[Black "Islam, Khandaker Aminul"]
[Result "0-1"]
[ECO "C59"]
[WhiteElo "1871"]
[BlackElo "2153"]
[Annotator "TA"]
[PlyCount "96"]
[EventDate "2022.04.18"]
[EventCountry "BAN"]
[SourceTitle "playchess.com"]
[Source "ChessBase"]
[SourceQuality "1"]
[TimeControl "5400+30"]

{[%evp 19,96,27,4,-15,4,-17,-2,-14,-21,-45,0,0,0,-22,-6,0,8,4,32,-12,41,26,43,26,44,35,83,5,8,-150,-164,-175,-181,-178,-163,-179,-165,-138,-118,-112,-114,-93,-99,-714,-697,-756,-689,-737,-700,-922,-919,-950,-906,-1126,-1089,-1029,-830,-1430,-574,-574,-562,-556,-547,-546,-474,-468,-444,-535,-520,-12845,-12845,-12845,-12846,-12846,-12847,-29980,-12846,-29990,-29991]} 1. e4 {[%emt 0:00:20]} e5 {[%emt 0:00:02]} 2. Bc4 {[%emt 0:00:23]} Nc6 {[%emt 0:00:18]} 3. Nf3 {[%emt 0:02:08]} Nf6 {[%emt 0:00:26]} 4. Ng5 {[%emt 0:02:34]} d5 {[%emt 0:00:29]} 5. exd5 {[%emt 0:00:08]} Na5 {[%emt 0:00:45]} 6. Bb5+ {[%emt 0:00:32]} c6 {[%emt 0:01:26]} 7. dxc6 {[%emt 0:00:19]} bxc6 {[%emt 0:00:01]} 8. Be2 {[%emt 0:00:50]} h6 {[%emt 0:01:01]} 9. Nf3 {[%emt 0:00:04] 9.Nf3 has become a bit dusty these days.} e4 {[%emt 0:01:02]} 10. Ne5 {[%emt 0:00:07]} Bc5 {[%emt 0:02:03]} 11. O-O {[%emt 0:09:41] C59: Two Knights: 4 Ng5 d5 5 exd5 Na5 5 Bb5+ c6 6 dxc6 bxc6 7 Be2.} O-O {[%emt 0:05:15]} (11... Qd4 $5 {[%cal Rd4e5]} 12. Ng4 Bxg4 13. Bxg4 e3 14. fxe3 Qxg4 15. Qxg4 Nxg4 $11) 12. c3 {[%emt 0:01:42] Against Qd4} (12. d3 {feels hotter.} Re8 13. Ng4 Bxg4 14. Bxg4 Nxg4 15. Qxg4 exd3 16. cxd3 Qd4 17. Qxd4 Bxd4 18. Nd2) 12... Bd6 {[%emt 0:02:07]} 13. d4 {[%emt 0:01:05] The position is equal.} exd3 $1 {[%emt 0:00:12]} 14. Nxd3 {[%emt 0:00:03]} Qc7 {[%emt 0:02:22]} 15. g3 {[%emt 0:04:56]} Bf5 {[%emt 0:01:26]} 16. b4 {[%emt 0:06:21] [#]} Nb7 $146 {[%emt 0:04:18][%mdl 1024] Black has compensation.} (16... Nc4 $5 {[%cal Ra7a5]}) ({Predecessor:} 16... Nc4 17. Nd2 Nxd2 18. Bxd2 a5 19. Re1 Rfd8 20. a3 Ne4 21. Bf1 axb4 22. cxb4 Be5 {½-½ (29) Dothan,Y (2582)-Voiculescu,C (2483) ICCF email 2015}) 17. Be3 {[%emt 0:01:56]} Rfd8 {[%emt 0:04:00]} 18. Bd4 {[%emt 0:02:15]} Be7 {[%emt 0:01:02]} 19. Bf3 {[%emt 0:15:37]} Nd5 {[%emt 0:01:53]} (19... a5 $11 20. Ne5 Nd5) 20. Bxd5 $14 {[%emt 0:02:52]} Rxd5 {[%emt 0:00:12]} 21. Nf4 {[%emt 0:00:08]} Rd7 {[%emt 0:00:30]} 22. Qf3 {[%emt 0:00:42]} Bf8 {[%emt 0:01:30]} (22... Bg5 $14) 23. Nh5 {[%emt 0:01:57]} (23. Nd2 $16) 23... Bg6 $11 {[%emt 0:00:38]} 24. Nf6+ $2 {[%emt 0:00:06]} gxf6 $17 {[%emt 0:00:06]} 25. Qxf6 {[%emt 0:00:03][%csl Gd4][%cal Rf6h8] [#]} Rxd4 $1 {[%emt 0:00:03][%mdl 512]} 26. Qxd4 {[%emt 0:00:11]} c5 {[%emt 0:00:40][%cal Bc6c5,Bc5b4][%mdl 32]} 27. Qc4 {[%emt 0:03:01]} Rd8 {[%emt 0:10:05] Inhibits Nd2.} 28. Na3 {[%emt 0:00:35]} Bd3 {[%emt 0:00:29] &Nero is more active.} 29. Qg4+ {[%emt 0:00:03]} Bg7 {[%emt 0:00:13] A strong pair of Bishops.} 30. Rfe1 {[%emt 0:01:53]} cxb4 {[%emt 0:02:20]} 31. Re3 $2 {[%emt 0:04:53][%mdl 8192] This costs White the game.} bxa3 $19 {[%emt 0:02:24]} 32. Rae1 {[%emt 0:00:41][%cal Oe3d3]} Bg6 {[%emt 0:01:13]} 33. h4 {[%emt 0:00:54]} h5 {[%emt 0:03:42]} 34. Qa4 {[%emt 0:03:14]} Nc5 {[%emt 0:01:07]} 35. Qxa3 {[%emt 0:00:49]} Nd3 {[%emt 0:02:39]} 36. Re8+ {[%emt 0:02:08]} Rxe8 {[%emt 0:00:10]} 37. Rxe8+ {[%emt 0:00:22]} Kh7 {[%emt 0:00:01] ...Qb6 is the strong threat.} 38. Re7 {[%emt 0:00:12]} Qxc3 {[%emt 0:00:39]} (38... Qb6 $142 39. Qxa7 Qb1+ 40. Kh2 Ne5 41. Rxe5 Bxe5) 39. Qxc3 {[%emt 0:01:25]} Bxc3 {[%emt 0:00:02]} 40. Rxa7 {[%emt 0:00:09] [#]} Nxf2 $1 {[%emt 0:00:08]} 41. a4 {[%emt 0:01:30]} (41. Ra3 Ne4) 41... Ne4 {[%emt 0:01:07]} 42. Kg2 {[%emt 0:00:21]} Be5 {[%emt 0:01:07]} 43. a5 {[%emt 0:01:11]} Nxg3 {[%emt 0:01:04] And now ...Be4+ would win.} 44. a6 {[%emt 0:00:32]} (44. Re7 $142 Bd6 45. Re1 Be4+ 46. Kf2) 44... Be4+ {[%emt 0:00:41]} 45. Kh3 {[%emt 0:00:08]} Kg7 {[%emt 0:07:40] ( -> ...Ne2)} 46. Re7 {[%emt 0:00:21]} Kf6 {[%emt 0:00:49]} 47. Re8 {[%emt 0:00:33]} Nf5 {[%emt 0:00:46]} (47... Nf1 $142 48. Rg8 Ne3 49. Rg5 Bc6 50. Rg3 Bxg3 51. Kxg3 Ng4 52. Kf4 Bh1 53. a7 Ba8 54. Kg3 Ke5 55. Kh3 f5 56. Kg3 f4+ 57. Kh3 f3 58. Kg3 f2 59. Kh3 f1=Q+ 60. Kg3 Qg2#) 48. a7 {[%emt 0:02:08]} Ne3 {[%emt 0:42:17] Weighted Error Value: White=0.74/Black=0.26 (precise)} 0-1

[Event "Marcel Invitational Chess-ch 2022"]
[Site "Dhaka"]
[Date "2022.04.24"]
[Round "6.5"]
[White "Jamal Uddin"]
[Black "Jabed Al Azad"]
[Result "1-0"]
[ECO "D74"]
[WhiteElo "2106"]
[BlackElo "2060"]
[Annotator "TA"]
[PlyCount "105"]
[EventDate "2022.04.18"]
[EventCountry "BAN"]
[SourceTitle "playchess.com"]
[Source "ChessBase"]
[SourceQuality "1"]
[TimeControl "5400+30"]

{[%evp 19,104,33,34,39,41,28,42,35,30,26,35,34,54,69,77,69,62,40,68,33,74,68,103,120,131,83,160,149,138,116,105,95,160,168,176,176,163,78,115,70,85,85,173,165,175,173,173,168,177,174,252,252,315,306,305,331,420,418,413,420,402,418,359,104,108,0,0,0,56,-24,-29,-25,-39,-26,-31,-42,0,-70,-71,-70,-71,-29976,-29977,-29976,-29977,-6420,29999]} 1. d4 {[%emt 0:01:25]} Nf6 {[%emt 0:10:05]} 2. Nf3 {[%emt 0:00:40]} g6 {[%emt 0:00:12]} 3. c4 {[%emt 0:00:32]} Bg7 {[%emt 0:00:07]} 4. Nc3 {[%emt 0:01:12]} d5 {[%emt 0:00:06]} 5. g3 {[%emt 0:01:14]} O-O {[%emt 0:00:54]} 6. Bg2 {[%emt 0:00:20]} c6 {[%emt 0:00:16]} 7. cxd5 {[%emt 0:00:36]} Nxd5 {[%emt 0:00:13]} 8. O-O {[%emt 0:00:29]} Nd7 {[%emt 0:03:15]} 9. e4 {[%emt 0:01:31]} Nxc3 {[%emt 0:00:38]} 10. bxc3 {[%emt 0:00:08]} e5 {[%emt 0:00:11]} 11. Qb3 {[%emt 0:05:41] D74: Fianchetto Grünfeld: Main Line (5 Nf3 0-0 6 cxd5 Nxd5 7 0-0).} exd4 {[%emt 0:01:57]} 12. cxd4 {[%emt 0:02:17]} Nb6 {[%emt 0:01:41]} 13. Bg5 {[%emt 0:03:51] [#] White is slightly better.} Qe8 $146 {[%emt 0:02:01]} ({Predecessor:} 13... Bf6 14. Bxf6 Qxf6 15. e5 Qe7 16. Rfe1 Be6 17. Qe3 Kg7 18. h4 h5 {½-½ (53) Vantika,A (2243)-Aakanksha,H (2246) Surakarta 2019}) 14. Rfe1 {[%emt 0:05:57]} Bg4 {[%emt 0:01:29]} 15. Rad1 {[%emt 0:00:44]} Qc8 {[%emt 0:00:49]} 16. a4 {[%emt 0:02:01]} h6 {[%emt 0:02:01]} 17. Bf4 {[%emt 0:03:49]} g5 {[%emt 0:00:29]} 18. Bd6 {[%emt 0:00:53]} Rd8 {[%emt 0:00:10]} 19. Bc5 {[%emt 0:05:10]} Be6 {[%emt 0:01:05]} 20. Qc2 {[%emt 0:02:07]} Qc7 {[%emt 0:02:35]} 21. e5 {[%emt 0:01:31]} Bd5 {[%emt 0:01:30]} 22. Nd2 {[%emt 0:01:07]} (22. h4 $142) 22... Qd7 {[%emt 0:01:30]} (22... Bxg2 $142 23. Kxg2 Nd5) 23. a5 $16 {[%emt 0:01:48]} Nc8 {[%emt 0:00:19]} 24. Ne4 {[%emt 0:00:54]} b6 {[%emt 0:02:43]} 25. Bb4 {[%emt 0:01:09] &Bianco is much more active. The black rooks are badly placed.} Qe6 {[%emt 0:02:05]} ({Black should play} 25... Ne7) 26. Ra1 {[%emt 0:04:42]} Rb8 {[%emt 0:00:49][%cal Ba8b8,Bb8b7,Bb7c7,Bc7c5,Bc5c4][%mdl 32]} 27. axb6 {[%emt 0:01:29]} axb6 {[%emt 0:00:17]} 28. Bc3 {[%emt 0:01:54]} (28. Ra3 $18) 28... Rb7 {[%emt 0:01:31]} 29. Qe2 {[%emt 0:01:43]} Rc7 {[%emt 0:01:30]} 30. Bf3 {[%emt 0:07:10]} c5 {[%emt 0:05:02]} (30... Qf5 $16 {is a better defense.}) 31. dxc5 $1 $18 {[%emt 0:05:22]} Bxe4 {[%emt 0:01:36]} 32. Bxe4 {[%emt 0:00:57]} ({Don't do} 32. Qxe4 $6 Rxc5 33. Bb2 Ne7 $16) 32... Rxc5 {[%emt 0:00:57] [#]} 33. Bb2 {[%emt 0:01:01] This bishop pair is nice.} Ne7 {[%emt 0:01:06]} 34. f4 {[%emt 0:05:45]} gxf4 {[%emt 0:13:14]} (34... Qc4 $142 35. Rad1 Rxd1 36. Qxd1 Ng6) 35. gxf4 {[%emt 0:01:24]} Rc4 {[%emt 0:01:06]} 36. Kh1 {[%emt 0:01:32]} b5 {[%emt 0:01:29]} 37. Rg1 {[%emt 0:00:37]} Kh8 {[%emt 0:01:41]} 38. Qg2 {[%emt 0:01:03][%csl Gg1][%cal Rg2g7]} Rg8 {[%emt 0:01:29]} 39. Ra8 {[%emt 0:00:30][%csl Gg1][%cal Rg2g7]} Rcc8 {[%emt 0:02:13]} 40. Rxc8 {[%emt 0:06:51] Chess con chili.} Qxc8 {[%emt 0:00:12]} 41. f5 {[%emt 0:00:35] Inhibits Qe6.} (41. Qf3 $18 {has better winning chances. Strongly threatening f5.} Qf8 42. f5) 41... Nxf5 $16 {[%emt 0:04:22]} 42. Bxf5 {[%emt 0:06:48]} (42. Qf3 $16 Ne7 43. Qxf7) 42... Qxf5 $11 {[%emt 0:01:53]} 43. e6 {[%emt 0:00:10]} f6 {[%emt 0:11:03]} (43... Qg6 44. Bxg7+ Kxg7 45. Qb2+ f6 46. Rxg6+ $18) (43... Qxe6 $11 44. Bxg7+ Kh7) 44. Qc6 {[%emt 0:02:46]} ({White should try} 44. e7 $14 Qe6 45. Ba3) 44... Bf8 {[%emt 0:00:14] aiming for ...Rxg1+.} 45. Rxg8+ {[%emt 0:09:56][%mdl 64] Remove Defender} Kxg8 {[%emt 0:00:02][%cal Rf5f1]} 46. Kg2 {[%emt 0:00:32] Prevents Qf1+.} Qg4+ {[%emt 0:02:00]} 47. Kf2 {[%emt 0:00:54]} Qf5+ {[%emt 0:00:40]} 48. Kg3 {[%emt 0:01:16]} (48. Kg2 $11) 48... Qd3+ $15 {[%emt 0:01:01]} ({Weaker is} 48... Qg5+ 49. Kf3 $17) 49. Kh4 {[%emt 0:00:20]} Qg6 $1 {[%emt 0:02:59] White must now prevent ...Qg5+.} 50. Qd7 $2 {[%emt 0:01:33][%mdl 8192]} ({Not} 50. Qd5 $2 Be7 51. Kh3 b4 $19) (50. Qxb5 $17 Qe4+ 51. Kg3) 50... f5 {[%emt 0:00:41][%csl Gf5][%cal Rg6g4]} 51. Qd4 {[%emt 0:00:57]} Be7+ {[%emt 0:01:52]} 52. Kh3 {[%emt 0:00:11] [#]} Qxe6 $4 {[%emt 0:00:04][%mdl 8192]} (52... Bf6 $1 $19 {[%mdl 512]} 53. Qd1 Bxb2) 53. Qg7# {[%emt 0:00:31] White used his chance.  Weighted Error Value: White=0.37/Black=0.27 (precise)} 1-0